Cogmind - Beta 17 @@@ ROGUE MODE // 2026.08.12 @ 18:02:16 Player: MrFartsburg Result: Destroyed by G-34 Mercenary with Small Laser Performance ------------- Evolutions (1) 500 Regions Visited (2) 400 Robots Destroyed (11) 55 Value Destroyed (273) 273 Prototype IDs (1) 20 Alien Tech Used (0) 0 Bonus (0) 0 TOTAL SCORE: 1248 Bonus ------- None Cogmind --------- Core Integrity 0/400 Matter 106/300 Energy 88/100 System Corruption 0% Temperature Cool (12) Movement Core (50) Location -9/Materials Parts ------- > --- POWER (2) -------- (None) > --- PROPULSION (3) --- (None) > --- UTILITY (2) ------ Machine Analyzer Improved Targeting Computer > --- WEAPON (2) ------- Light Assault Rifle > --- INVENTORY (5) ---- (None) Peak State ------------ > --- POWER ------------ Improved Ion Engine > --- PROPULSION ------- Aluminum Leg Aluminum Leg > --- UTILITY ---------- Machine Analyzer Hardened Medium Armor Plating > --- WEAPON ----------- Improved Medium Laser Light Cannon > --- INVENTORY -------- Medium Laser Light Assault Rifle Light Assault Rifle Grenade Launcher [Rating: 14] Favorites ----------- Power Improved Ion Engine Engine Improved Ion Engine Propulsion Aluminum Leg Leg Aluminum Leg Wheel Wheel Utility Machine Analyzer Processor Machine Analyzer Protection Hardened Medium Armor Plating Weapon Light Assault Rifle Energy Gun Medium Laser Ballistic Gun Light Assault Rifle Ballistic Cannon Light Cannon Launcher Grenade Launcher Build | -11 -10 -9 ------- Run | Yrd Mat Mat Slots Evolved 2 | . . 2 Power 1 | . . 1 Propulsion 1 | . . 1 Utility . | . . . Weapon . | . . . Parts Attached 17 | 5 5 7 Power 3 | 1 1 1 Engine 3 | 1 1 1 Core . | . . . Reactor . | . . . Propulsion 4 | 2 2 . Treads . | . . . Leg 2 | . 2 . Wheel 2 | 2 . . Hover . | . . . Flight . | . . . Utility 3 | . . 3 Device . | . . . Storage . | . . . Processor 2 | . . 2 Hackware . | . . . Protection 1 | . . 1 Artifact . | . . . Weapon 7 | 2 2 3 Energy Gun 2 | 1 . 1 Energy Cannon . | . . . Ballistic Gun 3 | 1 . 2 Ballistic Cannon 1 | . 1 . Launcher 1 | . 1 . Special Weapon . | . . . Impact Weapon . | . . . Slashing Weapon . | . . . Piercing Weapon . | . . . Special Melee Weapon . | . . . Unidentified Prototypes 1 | . . 1 Parts Lost 14 | . 4 10 Power 3 | . 2 1 Propulsion 4 | . 2 2 Utility 1 | . . 1 Weapon 6 | . . 6 Highest Loss Streak 10 | . 2 10 To Critical Strikes 1 | . . 1 Average Backups 2 | . . 3 Power . | . . . Propulsion . | . . . Utility . | . . . Weapon 2 | . . 3 Tool/Special . | . . . Unused Backups . | . . . Power . | . . . Propulsion . | . . . Utility . | . . . Weapon . | . . . Tool/Special . | . . . Average Slot Usage (%) 60 | . 52 65 Engine 6 | . 8 5 Leg 12 | . 1 18 Wheel 5 | . 14 . Processor 7 | . . 12 Protection 5 | . . 8 Energy Gun 6 | . 9 4 Ballistic Gun 8 | . 11 6 Ballistic Cannon 6 | . 2 8 Launcher 1 | . 4 . Peak Build Rating 14 | 5 5 14 Average Rating 7 | 3 3 11 On Entrance 3 | . 5 4 Avg Prop Armor Cover (%) . | . . . Naked Turns . | . . . Heaviest Build 21 | 8 8 21 Greatest Support 26 | 26 26 20 Greatest Overweight (x) 1 | . 1 1 Average Overweight (x) . | . . . Largest Inventory Capacity 5 | 5 5 5 Average Capacity 5 | 5 5 5 Most Carried 5 | . 3 5 Average Carried 2 | . . 3 Final Capacity 5 | 5 5 5 Final Carried 3 | . 3 . Class Distribution -------------------- 85% | Mutant 14% | Scavenger-Mutant Dominant Class ---------------- Mutant | -10/Materials Mutant | -9/Materials Resources | -11 -10 -9 ----------- Run | Yrd Mat Mat Matter Collected 337 | 250 19 68 Remotely . | . . . Salvage Created 230 | . 82 148 Parts 21 | . 6 15 Haulers Intercepted . | . . . Recyclers Shooed . | . . . Parts Field Recycled . | . . . Retrieved Matter . | . . . Parts Self-Destructed . | . . . Prevented . | . . . Parts Restored . | . . . Kills | -11 -10 -9 ------- Run | Yrd Mat Mat Combat Hostiles Destroyed 11 | . 5 6 Guns 6 | . 2 4 Cannons 2 | . . 2 AOE 3 | . 3 . Classes Destroyed 3 | . 2 1 Swarmer 6 | . 3 3 Grunt 2 | . 2 . Sentry 3 | . . 3 Best Kill Streak 3 | . 2 3 Combat Bots Only 3 | . 2 3 Max Kills in Single Turn 1 | . 1 1 Gunslinging . | . . . Exploded 1 | . 1 . Melee . | . . . Uniques/NPCs Destroyed . | . . . Combat | -11 -10 -9 -------- Run | Yrd Mat Mat Hostile Shots Fired 241 | . 69 172 Missed 82 | . 24 58 Hits 159 | . 45 114 Projectile 159 | . 45 114 Critical Strikes 2 | . . 2 Damage Taken 1746 | . 562 1184 Core 589 | . 180 409 Absorbed by Shields . | . . . Core Remaining (%) 64 | 100 28 . Volleys Fired 44 | . 17 27 Largest 2 | . 2 2 Hottest 86 | . 70 86 Shots Fired 78 | . 34 44 Gun 55 | . 26 29 Cannon 15 | . 3 12 Launcher 8 | . 5 3 Special . | . . . Kinetic 44 | . 17 27 Thermal 26 | . 12 14 Explosive 8 | . 5 3 Electromagnetic . | . . . Robot Hit Streak 11 | . 4 11 Robot Miss Streak 3 | . 3 2 Penetration Max . | . . . Secondary Targets 2 | . 1 1 Max Gunslinging Chain 1 | . 1 1 Shots Hit Robots 55 | . 20 35 Core Hits 23 | . 10 13 Critical Kills . | . . . Critical Parts Destroyed . | . . . Critical Strikes 3 | . 2 1 Burn 3 | . 2 1 Melee Attacks . | . . . Impact . | . . . Slashing . | . . . Piercing . | . . . Sneak Attacks . | . . . Combat Hostiles . | . . . Follow-up Attacks . | . . . Damage Inflicted 987 | . 399 588 Guns 485 | . 176 309 Cannons 202 | . 33 169 Explosions 298 | . 190 108 Melee . | . . . Ramming 2 | . . 2 Kinetic 411 | . 121 290 Thermal 276 | . 88 188 Explosive 298 | . 190 108 Electromagnetic . | . . . Impact . | . . . Slashing . | . . . Piercing . | . . . Highest Corruption . | . . . Average Corruption . | . . . Corruption Purged . | . . . Corruption Blocked . | . . . Overload Shots . | . . . Overflow Damage . | . . . Projectiles . | . . . Explosions . | . . . Melee . | . . . Knockbacks 2 | . 1 1 Impact . | . . . Kinetic 2 | . 1 1 Secondary . | . . . Self-Inflicted Damage 69 | . 63 6 Shots 5 | . 3 2 Rammed . | . . . Targets Rammed 1 | . . 1 Kicked 1 | . . 1 Crushed . | . . . Highest Temperature 183 | . 183 156 Average Temperature 61 | . 87 43 Received Heat Transfer 645 | . 210 435 Siege Activations . | . . . Martial Activations . | . . . Shielding Activations . | . . . Robots Disrupted . | . . . Combat Hostiles . | . . . Robots Corrupted . | . . . Combat Hostiles . | . . . Parts Fried . | . . . Impact Corruptions . | . . . Robots Melted . | . . . Combat Hostiles . | . . . Parts Melted . | . . . Heat Transferred 888 | . 407 481 Parts Sabotaged . | . . . Parts Stolen . | . . . Parts Stripped . | . . . Power Chain Reactions . | . . . Alert | -11 -10 -9 ------- Run | Yrd Mat Mat Maximum Alert Level . | . . . Low Security (%) 100 | 100 100 100 Level 1 . | . . . Level 2 . | . . . Level 3 . | . . . Level 4 . | . . . Level 5 . | . . . High Security . | . . . Max Security . | . . . Peak Influence 105 | . 105 95 Initial 39 | . . 39 Average 36 | . 33 45 Influence Increases 366 | . 175 191 Destroy 0b10 Robot/C 220 | . 100 120 Destroy Leader 50 | . 10 40 Disable Machine 15 | . 15 . Destroy Structure 36 | . 20 16 Lose Combat Pursuer 45 | . 30 15 Influence Decreases 356 | . 80 276 Entered New Map 56 | . . 56 Time Decay 200 | . 60 140 Lost Part 100 | . 20 80 Squads Dispatched 3 | . 1 2 Investigation 2 | . 1 1 Extermination . | . . . Reinforcement 1 | . . 1 Assault . | . . . Garrison . | . . . Intercept . | . . . Searches Triggered . | . . . Construction Impeded . | . . . Haulers Reinforced . | . . . Active Scanning Responses . | . . . Cargo Convoy Interrupts . | . . . Stealth | -11 -10 -9 --------- Run | Yrd Mat Mat Distress Signals 2 | . 1 1 Communications Jammed . | . . . Distress Signals . | . . . Times Spotted 26 | . 10 16 Peak Tracking Total 10 | . 5 10 Tactical Retreats 2 | . 1 1 Traps | -11 -10 -9 ------- Run | Yrd Mat Mat Traps Triggered . | . . . Indirectly . | . . . Trap Hack Attempts . | . . . Triggered . | . . . Disarmed . | . . . Reprogrammed . | . . . Reused . | . . . Traps Extracted . | . . . Installed . | . . . Triggered . | . . . Machines | -11 -10 -9 ---------- Run | Yrd Mat Mat Machines Disabled 1 | . 1 . Max in Single Turn 1 | . 1 . Machines Repaired . | . . . Machines Dismantled . | . . . Machines Sabotaged . | . . . Overloaded Fab Kills . | . . . Hacking | -11 -10 -9 --------- Run | Yrd Mat Mat Machines Accessed 3 | . 1 2 Terminals 3 | . 1 2 Fabricators . | . . . Repair Stations . | . . . Recycling Units . | . . . Scanalyzers . | . . . Garrison Access . | . . . Total Hacks 8 | . 4 4 Successful 4 | . . 4 Failed 4 | . 4 . Catastrophic 1 | . 1 . Database Lockouts . | . . . Manual . | . . . Terminals 8 | . 4 4 Fabricators . | . . . Repair Stations . | . . . Recycling Units . | . . . Scanalyzers . | . . . Garrison Access . | . . . Terminal Hacks 4 | . . 4 Record 2 | . . 2 Robot Analysis 1 | . . 1 Dispatch Records 1 | . . 1 Fabricator Hacks . | . . . Repair Station Hacks . | . . . Recycling Unit Hacks . | . . . Scanalyzer . | . . . Garrison Access Hacks . | . . . Unauthorized Hacks . | . . . Terminals . | . . . Fabricators . | . . . Repair Stations . | . . . Recycling Units . | . . . Scanalyzers . | . . . Garrison Access . | . . . Data Cores Recovered . | . . . Used . | . . . Hacking Detections 2 | . 1 1 Full Trace Events 2 | . 1 1 Feedback Events . | . . . Feedback Blocked . | . . . Robot Schematics Acquired . | . . . Robots Built . | . . . Authchips . | . . . Time . | . . . Total Robot Build Rating . | . . . Part Schematics Acquired . | . . . Parts Built . | . . . Authchips . | . . . Time . | . . . Total Part Build Rating . | . . . Part Studies Acquired . | . . . Parts Repaired . | . . . Time . | . . . Parts Recycled . | . . . Recycled Matter . | . . . Retrieved Matter . | . . . Retrieved Components . | . . . Parts Scanalyzed . | . . . Part Schematics Acquired . | . . . Parts Damaged . | . . . Bothacking | -11 -10 -9 ------------ Run | Yrd Mat Mat Used RIF Installer . | . . . Robots Hacked . | . . . Non-combat . | . . . Combat . | . . . Robot Hacks Applied . | . . . Relay Couplers Released . | . . . Fabnet Peak Effective % . | . . . Robots Rewired . | . . . Allies Hacked . | . . . Hacks Repelled . | . . . Allies | -11 -10 -9 -------- Run | Yrd Mat Mat Total Allies . | . . . Largest Group . | . . . Highest-Rated Group . | . . . Highest-Rated Ally . | . . . Total Orders . | . . . Ally Attacks . | . . . Total Damage . | . . . Kills . | . . . Allies Corrupted . | . . . Allies Melted . | . . . Intel | -11 -10 -9 ------- Run | Yrd Mat Mat Active Infowar (turns) 295 | . . 295 Machine Analysis 295 | . . 295 Robot Analysis Total 1 | . . 1 Derelict Logs Recovered . | . . . Drone Launches . | . . . Drone Recoveries . | . . . Exploration | -11 -10 -9 ------------- Run | Yrd Mat Mat Turns Passed 552 | 58 190 304 Spaces Moved 350 | 52 145 153 Core 49 | 1 46 2 Treads . | . . . Legs 163 | . 12 151 Wheels 138 | 51 87 . Hover . | . . . Flight . | . . . Fastest Speed 50 | 50 50 50 Average Speed 110 | 93 89 136 Slowest Speed 190 | 100 120 190 Overloaded Moves . | . . . Propulsion Burnouts . | . . . Robots Hopped . | . . . Potential Cave-ins . | . . . Cave-ins Triggered . | . . . Exploration Rate (%) 18 | 3 29 24 Regions Visited 2 Branch Regions . Pre-discovered Areas . | . . . Known Exits Taken . | . . . Unknown Exits Taken 2 | 1 1 . Scrap Searched . | . . . Spaces Dug . | . . . Terrain Destroyed 36 | . 20 16 Melee . | . . . Projectile . | . . . AOE 36 | . 20 16 Terrain Rammed . | . . . Walls Destroyed . | . . . Machines Disabled . | . . . Actions | -11 -10 -9 --------- Run | Yrd Mat Mat Total 433 | 58 172 203 Wait 12 | 2 3 7 Move 348 | 51 144 153 Hop . | . . . Pick Up 5 | . 3 2 Fast Attach 12 | 5 3 4 Attach 5 | . . 5 Detach . | . . . Swap 6 | . 2 4 Drop . | . . . Fire 44 | . 17 27 Melee . | . . . Ram . | . . . Kick 1 | . . 1 Crush . | . . . Escape Stasis . | . . . Rewire . | . . . Trap . | . . . Miscellaneous . | . . . Route ------- -11/Scrapyard -10/Materials -9/Materials History --------- Turn | Location | Event 11 | -11/Scrapyard | Discovered new exit (range 14) 59 | -11/Scrapyard | Entered Materials 171 | -10/Materials | Core integrity fell below 50% 225 | -10/Materials | Discovered new exit (range 5) 249 | -10/Materials | Entered another Materials area 249 | -9/Materials | Evolved 2 slots: Power x1, Propulsion x1 301 | -9/Materials | Build established: Mutant 535 | -9/Materials | Core integrity fell below 50% 547 | -9/Materials | Core integrity fell below 20% 553 | -9/Materials | Destroyed by G-34 Mercenary with Small Laser Last Messages --------------- R-06 Scavenger collects Imp. Terrain Scanner. Lgt. Cannon destroyed. Aluminum Leg destroyed. ALERT: Hostiles spotted, dispatching reinforcements to Terminal M004. W-16 Scout sends out distress signal. R-06 Scavenger collects Wheel. Grenade Launcher destroyed. Hrd. Medium Armor Plating destroyed. Aluminum Leg destroyed. S-10 Pest destroyed. Switching to secondary target: S-10 Pest. S-10 Pest destroyed. Critical hit (Destroy). Lgt. Assault Rifle destroyed. S-10 Pest destroyed. Imp. Medium Laser destroyed. Med. Laser destroyed. Lgt. Assault Rifle destroyed. Acquired Lgt. Assault Rifle. Map ----- +----------------------------------------------------+ | ???????????????????????????????????? | | ???????????????????????????????????? | | ???????????????????????????????????? | | ???????????????????????????????????? | | ???????????????????????????????????? | | ???????????????????????????????????? | | ####???????????????????????????????? | | #?###??????##??? #????????????? | | #?# ##???? ##?? #????????????? | | " #?# #???? #?# ##???????????? | | #### ###### ### #???????????? | | " # #???????????? | | " + #???????????? | | " # " #???????????? | | " ####### """ #???????????? | | " #?????# "" ###????????????? | | #?????# """ ""#????????????? | | #?????# "" Y"#????????????? | | ####?????# """ ""###########??? | | ?????????# """ #?# #??? | | ??######## """ #?# #??? | | ??# " ###*= #??? | | T?# #gg ! #??? | | + gYg%* #??? | | # #g=% #??? | | ??# #=[@ #??? | | ??#########% # #??? | | ??????????#! ###########??? | | ??????????# ???????????? | | ??????????# #??????????? | | ??????????# +??????????? | | ??????????# #??????????? | | ?????????? #??????????? | | ????????? #??????????? | | ???????? "T" #??????????? | | ????????? """ #??????????? | | ????????? ?? #??????????? | | ?????????? ??? ????????????? | | ???"""?????????????????????????????? | | ???"Y"?????????????????????????????? | | ???????????????????????????????????? | | ?????????????????""?""?????????????? | | ?????????????????""S""?????????????? | | ?????????????????""""??????????????? | | ???????????????????????????????????? | | """????????????????????????????????? | | """???""???????????????????????????? | | """???T"???????????????????????????? | | ??????""???????????????????????????? | | ???????????????????????????????????? | +----------------------------------------------------+ Best States ------------- Heat Dissipation 28 Energy Generation 12 Energy Capacity 265 Matter Stores 300 Matter Capacity 300 Sight Range 16 Terrain Scan Density 10 Armor Coverage 225 Evasion (%) 55 Targeting Accuracy 6 Item Schematics ----------------- None Robot Schematics ------------------ None Fabricated ------------ Nothing Repaired ---------- Nothing Studied --------- None Alien Tech Used ----------------- None Achievements -------------- None Challenges ------------ None Game ------ Seed DispersionScatterPower Manual? 0 Play Time 00:11:58 Cumulative 30.0 hours Start 2026.08.12 @ 10:22:02 End 2026.08.12 @ 18:02:16 Sessions 3 Manual Loads 0 Difficulty Rogue Special Mode None Game No. 56 Rogue 56 Adventurer 0 Explorer 0 Win Type - Total 0 Types 0/0/0/0/0/0/0/0/0/0 Lore% 13 Gallery% 22 Achievement% 15 Wizard Run 0 Options --------- Layout 1 ASCII 0 Keyboard 0 Movement Numpad Keybinds 0 Fullscreen 1 Font 32/SmallcapsGlow Map View 50x35 Zoom Use 0% Tactical HUD 0 Map Filters NONE Filters NONE Steam 1 RUN: 15679bca-4111-406d-9a24-f2ffad2bcfe3